bitfinex/quotes_ETHUSD_20250507
["timestamp","ask_amount","ask_price","bid_price","bid_amount"]
[1746600079282,5.46120414,1831.1,1830.8,6.03462533]
[1746600079504,5.46110523,1831.2,1830.8,9.95483979]
[1746600079711,5.46110523,1831.2,1830.8,4.49287946]
[1746600080074,5.46110523,1831.2,1830.8,9.95483162]
[1746600080320,5.46102991,1831.2,1830.8,4.49287946]
[1746600080884,5.46102991,1831.2,1830.8,9.95485172]
[1746600081099,5.46102991,1831.2,1830.8,11.49655607]
[1746600081309,5.46102991,1831.2,1830.9,0.20407789]
[1746600081691,5.46102991,1831.2,1830.8,7.82417661]
[1746600081880,5.46102991,1831.2,1831.0,0.20359979]
[1746600082080,5.46102991,1831.2,1831.1,0.20312173]
[1746600082413,5.46102991,1831.2,1830.8,7.82417661]
[1746600082612,5.46102991,1831.2,1831.1,0.20312173]
[1746600082814,5.46076768,1831.3,1830.9,6.24420728]
[1746600083012,5.46076768,1831.3,1831.1,0.20312173]
[1746600083313,5.46076768,1831.3,1830.9,6.24420728]
[1746600083488,5.46076768,1831.3,1831.2,0.20264373]
[1746600084013,5.46076768,1831.3,1831.2,18.0]
[1746600084194,5.46076768,1831.3,1831.2,18.20264373]
[1746600084399,5.46076768,1831.3,1831.2,0.20264373]
[1746600084594,5.46076768,1831.3,1831.0,0.7516]
[1746600084786,5.46076768,1831.3,1831.2,0.20264373]
[1746600084987,5.46076768,1831.3,1831.0,0.7516]
[1746600085289,5.46076768,1831.3,1831.2,0.20264373]
[1746600085818,5.46076768,1831.3,1831.0,0.7516]
[1746600086025,5.46076768,1831.3,1831.2,0.20264373]
[1746600086200,10.92166129,1831.3,1831.0,0.7516]
[1746600086514,5.46076768,1831.3,1831.2,0.20264373]
[1746600086919,5.46090347,1831.2,1831.0,0.7516]
[1746600087119,5.46090347,1831.2,1830.8,0.796]
[1746600087290,5.46124141,1831.1,1830.8,7.48781325]
[1746600087887,5.46124141,1831.1,1830.8,2.02582208]
[1746600088088,5.46090347,1831.2,1830.8,7.48790029]
[1746600088925,5.46090347,1831.2,1830.9,5.46175014]
[1746600089221,5.46090347,1831.2,1830.8,7.48790029]
[1746600094323,10.9220307,1831.2,1830.8,7.48790029]
[1746600094526,5.46090347,1831.2,1830.8,7.48790029]
[1746600094713,5.46129282,1831.1,1830.8,7.48790029]
[1746600094910,5.46129282,1831.1,1830.8,6.69190029]
[1746600095115,5.46090347,1831.2,1830.8,6.69190029]
[1746600095410,5.46128885,1831.1,1830.7,12.32366605]
[1746600096117,5.46128885,1831.1,1830.8,0.20857312]
[1746600098226,5.4611056,1831.2,1830.8,5.67063175]
[1746600098598,5.46122492,1831.1,1830.8,5.67063175]
[1746600099136,5.46100899,1831.2,1830.9,5.4617728]
[1746600099521,5.46100899,1831.2,1831.0,0.20761686]
[1746600101799,5.46100899,1831.2,1830.8,10.92394271]
[1746600101999,5.46100899,1831.2,1830.9,0.20809497]
[1746600102232,5.46100899,1831.2,1830.8,12.09848698]
[1746600102403,5.46100899,1831.2,1830.9,0.20809497]
[1746600102603,5.46100899,1831.2,1830.8,12.09848698]
[1746600102838,5.46100899,1831.2,1830.9,0.20809497]
[1746600103025,5.46100899,1831.2,1830.8,6.63642835]
[1746600103226,5.46100899,1831.2,1830.9,0.20809497]
[1746600103427,5.46100899,1831.2,1830.8,12.15293866]
[1746600103639,5.46100899,1831.2,1830.9,0.20809497]
[1746600103924,5.46100899,1831.2,1830.8,6.63642556]
[1746600104115,5.46100899,1831.2,1831.0,0.20761686]
[1746600104320,5.46100899,1831.2,1830.9,0.20809497]
[1746600104516,5.46100899,1831.2,1831.1,0.20713881]
[1746600104717,5.46100899,1831.2,1831.0,0.20761686]
[1746600104937,5.46100899,1831.2,1831.1,0.20713881]
[1746600105316,5.46100899,1831.2,1830.8,10.92379864]
[1746600105520,5.46100899,1831.2,1831.1,0.20713881]
[1746600105705,5.46100899,1831.2,1830.8,10.92376798]
[1746600105905,5.46100899,1831.2,1831.1,0.20713881]
[1746600106106,5.46100899,1831.2,1830.8,10.92376798]
[1746600106308,5.46100899,1831.2,1831.1,0.20717939]
[1746600106942,5.46100899,1831.2,1830.8,10.92377514]
[1746600107129,5.46100899,1831.2,1831.1,0.20717939]
[1746600107645,6.28776869,1831.3,1831.1,0.20717939]
[1746600107811,6.28776869,1831.3,1830.9,6.27612202]
[1746600108012,6.28776869,1831.3,1831.0,0.20765744]
[1746600111042,6.26083169,1831.5,1831.1,5.46091554]
[1746600111217,0.8007,1831.7,1831.2,1.02112021]
[1746600111423,11.75670755,1831.9,1831.4,7.75399836]
[1746600111641,6.25970755,1831.9,1831.5,1.01960535]
[1746600111822,6.25970755,1831.9,1831.6,5.4596861]
[1746600112027,7.22903825,1832.0,1831.7,0.20406864]
[1746600112214,7.22903825,1832.0,1831.6,5.4596861]
[1746600112414,7.22903825,1832.0,1831.7,0.20406864]
[1746600112614,12.68784165,1832.0,1831.6,5.4596861]
[1746600112845,12.68784165,1832.0,1831.7,0.20406864]
[1746600113023,5.45881422,1831.9,1831.6,5.4596861]
[1746600113226,5.45881422,1831.9,1831.7,0.20406864]
[1746600113544,11.71810052,1832.0,1831.6,5.4596861]
[1746600113713,6.25934263,1832.0,1831.8,0.20359095]
[1746600113913,6.25934263,1832.0,1831.7,0.20406864]
[1746600114115,6.25934263,1832.0,1831.9,0.20311332]
[1746600114338,6.25934263,1832.0,1831.8,0.20359095]
[1746600114525,6.25934263,1832.0,1831.9,0.20311332]
[1746600114934,6.25934263,1832.0,1831.6,6.63291859]
[1746600115447,6.25934263,1832.0,1831.7,0.20406864]
[1746600115848,6.25934263,1832.0,1831.6,6.63291859]
[1746600116048,6.25934263,1832.0,1831.7,0.20406864]
[1746600116350,6.25934263,1832.0,1831.6,6.63291859]
[1746600116550,6.25934263,1832.0,1831.8,0.20075087]
[1746600116737,6.25934263,1832.0,1831.7,0.20122856]
[1746600117051,5.45881325,1831.9,1831.8,0.20075087]
[1746600117226,6.25938695,1832.0,1831.6,6.63291859]
[1746600117426,6.25938695,1832.0,1831.7,0.20122856]
[1746600117624,6.25938695,1832.0,1831.6,6.63291859]
[1746600117823,6.25938695,1832.0,1831.7,0.86452042]
[1746600120252,5.45897329,1831.9,1831.7,0.86452042]
[1746600120450,5.45897329,1831.9,1831.7,0.20122856]
[1746600120651,5.45897329,1831.9,1831.6,1.1734048]
[1746600120947,5.45897329,1831.9,1831.7,0.20122856]
[1746600121451,5.45897329,1831.9,1831.6,1.1734048]
[1746600121752,5.45897329,1831.9,1831.7,0.20122856]
[1746600122262,5.45897329,1831.9,1831.8,0.20075087]
[1746600122547,5.45897329,1831.9,1831.5,11.73419068]
[1746600122852,5.45897329,1831.9,1831.6,1.17341907]
[1746600123147,5.45897329,1831.9,1831.7,0.20122856]
[1746600123662,5.45897329,1831.9,1831.8,0.20075087]
[1746600123816,5.45897329,1831.9,1831.6,5.459693]
[1746600124252,5.45897329,1831.9,1831.7,0.20122856]
[1746600124451,5.45897329,1831.9,1831.6,5.459693]
[1746600124749,5.45897329,1831.9,1831.7,0.20122856]
[1746600125118,5.45897329,1831.9,1831.5,11.73411567]
[1746600125333,5.45897329,1831.9,1831.8,0.20075087]
[1746600125653,5.45897329,1831.9,1831.6,5.45968306]
[1746600125853,5.45897329,1831.9,1831.7,0.20122856]
[1746600126152,5.45897329,1831.9,1831.6,5.45968306]
[1746600126357,6.25926589,1832.0,1831.8,0.20075087]
[1746600126524,6.25926589,1832.0,1831.7,0.20122856]
[1746600126855,6.25926589,1832.0,1831.9,0.20027323]
[1746600127155,11.71801344,1832.0,1831.6,5.45952584]
[1746600127357,5.45856589,1832.0,1831.9,0.20027323]
[1746600127555,5.45856589,1832.0,1831.6,6.83357634]
[1746600127723,5.45856589,1832.0,1831.9,0.20027323]
[1746600127927,5.45856589,1832.0,1831.6,5.4595069]
[1746600128149,5.45856589,1832.0,1831.9,0.20027323]
[1746600128459,5.45856589,1832.0,1831.6,5.4595069]
[1746600128691,5.45856589,1832.0,1831.7,0.20122856]
[1746600129058,5.45856589,1832.0,1831.6,7.38317647]
[1746600129237,5.45856589,1832.0,1831.7,0.20122856]
[1746600129559,5.45856589,1832.0,1831.6,7.38317647]
[1746600129858,5.45856589,1832.0,1831.7,0.20122856]
[1746600130058,5.45856589,1832.0,1831.6,7.38317647]
[1746600130221,5.45856589,1832.0,1831.7,0.20122856]
[1746600130429,5.45856589,1832.0,1831.6,7.38317647]
[1746600130627,5.45856589,1832.0,1831.7,0.20122856]
[1746600130828,10.9173071,1832.0,1831.6,7.38317647]
[1746600131041,10.9173071,1832.0,1831.7,0.20122856]
[1746600131241,10.9173071,1832.0,1831.6,7.38317647]
[1746600131440,5.45856589,1832.0,1831.7,0.20118806]
[1746600131663,5.45856589,1832.0,1831.6,7.38317647]
[1746600131963,5.45834377,1832.1,1831.7,5.66056343]
[1746600132167,5.45736041,1832.4,1832.0,5.45827438]
[1746600132332,5.45736041,1832.4,1832.0,5.45831865]
[1746600132333,6.24802212,1832.4,1832.0,5.45831865]
[1746600132535,6.24802212,1832.4,1832.1,0.19603224]
[1746600132735,0.62480221,1832.3,1832.1,0.19603224]
[1746600133176,6.08246494,1832.3,1832.1,0.19603224]
[1746600133772,0.62480221,1832.3,1832.1,0.19603224]
[1746600133969,6.24802212,1832.4,1832.1,0.19603224]
[1746600137071,5.45742212,1832.4,1832.1,1.01823224]
[1746600141276,9.27843018,1832.5,1832.1,6.47634312]
[1746600141452,5.45736421,1832.4,1832.1,6.47634312]
[1746600142057,14.73572235,1832.5,1832.1,6.47634312]
[1746600142257,5.4573367,1832.4,1832.1,7.66980732]
[1746600143879,5.4573367,1832.4,1832.1,6.47634312]
[1746600147797,5.4573367,1832.4,1832.1,1.01823224]
[1746600151896,9.27823649,1832.5,1832.1,6.47641725]
[1746600152667,5.45742699,1832.4,1832.1,6.47641725]
[1746600152870,5.45742699,1832.4,1832.1,1.01823224]
[1746600153264,5.45762199,1832.3,1832.1,1.01823224]
[1746600153899,6.54912689,1832.3,1832.1,1.01823224]
[1746600154203,5.45791944,1832.2,1832.1,1.01823224]
[1746600154400,6.54912689,1832.3,1832.1,1.01823224]
[1746600154713,6.54912689,1832.3,1832.1,0.19603224]
[1746600155068,6.54912689,1832.3,1831.9,5.45865944]
[1746600155267,5.45762199,1832.3,1832.0,0.19521219]
[1746600156680,5.45765185,1832.3,1832.0,5.65351156]
[1746600156880,10.91503452,1832.4,1832.0,5.65351156]
[1746600157670,5.45764749,1832.3,1832.0,5.65351156]
[1746600159172,5.45747987,1832.4,1832.0,5.65351156]
[1746600159407,12.30652763,1832.4,1832.0,5.65351156]
[1746600160211,5.45766739,1832.3,1832.0,5.65351156]
[1746600161787,5.45766739,1832.3,1832.0,0.19521219]
[1746600165109,5.45766739,1832.3,1832.0,5.65372432]
[1746600165510,5.45766739,1832.3,1832.0,0.19521219]
[1746600165710,6.14258038,1832.3,1832.0,0.19521219]
[1746600166081,11.60044179,1832.3,1832.0,0.19521219]
[1746600166276,5.45792249,1832.2,1832.0,0.19521219]
[1746600167478,5.45821734,1832.1,1832.0,0.19521219]
[1746600167691,5.45854076,1832.0,1831.7,6.04]
[1746600167878,5.45854076,1832.0,1831.8,0.19604575]
[1746600168083,5.45854076,1832.0,1831.6,9.11478284]
[1746600168395,6.55021657,1832.0,1831.7,0.19583416]
[1746600168594,5.45882808,1831.9,1831.7,0.19583416]
[1746600168801,5.45882808,1831.9,1831.6,3.65528234]
[1746600169015,5.45882808,1831.9,1831.8,0.19535647]
[1746600169192,5.45882808,1831.9,1831.7,0.19583416]
[1746600169509,5.45882808,1831.9,1831.8,0.19535647]
[1746600169709,6.5503458,1832.0,1831.6,9.11496504]
[1746600169911,6.5503458,1832.0,1831.7,0.19583416]
[1746600170113,6.5503458,1832.0,1831.6,9.11496504]
[1746600170280,6.5503458,1832.0,1831.7,0.19583416]
[1746600170480,6.5503458,1832.0,1831.6,9.11496504]
[1746600170686,6.5503458,1832.0,1831.7,0.19583416]
[1746600170881,6.5503458,1832.0,1831.6,9.11496504]
[1746600171190,6.5503458,1832.0,1831.7,0.19583416]
[1746600171602,6.5503458,1832.0,1831.7,18.0]
[1746600171803,5.45866999,1832.0,1831.8,0.19535647]
[1746600172715,5.45866999,1832.0,1831.6,9.11477741]
[1746600172881,5.45866999,1832.0,1831.7,0.19583416]
[1746600173081,5.45866999,1832.0,1831.6,9.11477741]
[1746600173317,5.45866999,1832.0,1831.7,0.19583416]
[1746600173511,5.45866999,1832.0,1831.6,9.11477741]
[1746600173733,5.45866999,1832.0,1831.7,0.19583416]
[1746600174085,5.45866999,1832.0,1831.6,9.11477741]
[1746600174280,0.7759,1831.9,1831.7,0.19583416]
[1746600174482,0.7759,1831.9,1831.7,5.45940427]
[1746600174682,0.7759,1831.9,1831.8,0.19535647]
[1746600175082,0.7759,1831.9,1831.7,5.45940459]
[1746600175283,0.7759,1831.9,1831.8,0.19535647]
[1746600178024,5.45854173,1832.0,1831.8,0.19535647]
[1746600178212,11.71209214,1832.1,1831.8,0.19535647]
[1746600178431,7.42481608,1832.1,1831.8,0.19535647]
[1746600179136,12.8833306,1832.1,1831.8,0.19535647]
[1746600179290,5.45851569,1832.0,1831.8,0.19535647]
[1746600179784,0.793,1831.9,1831.8,0.19535647]
[1746600179989,0.793,1831.9,1831.6,9.11480762]
[1746600180186,0.793,1831.9,1831.8,0.19641072]
[1746600180404,6.25181325,1831.9,1831.7,0.19688841]
[1746600180722,6.87696482,1831.9,1831.8,0.19641072]
[1746600180892,6.87696482,1831.9,1831.6,3.65528234]
[1746600181096,6.25181325,1831.9,1831.7,0.19688841]
[1746600181291,6.25181325,1831.9,1831.3,13.18986339]
[1746600181292,0.793,1831.8,1831.3,3.65528234]
[1746600181503,6.25266911,1831.7,1831.4,0.1833271]
[1746600181708,6.25266911,1831.7,1831.4,5.64361506]
[1746600181902,6.25242736,1831.7,1831.4,5.64361506]
[1746600183030,6.25242736,1831.7,1831.4,0.1833271]
[1746600184399,0.793,1831.7,1831.4,5.64352259]
[1746600184599,0.793,1831.7,1831.5,18.0]
[1746600184996,0.793,1831.7,1831.6,0.18342367]
[1746600185335,6.25245735,1831.7,1831.6,0.18342367]
[1746600188750,6.25245735,1831.7,1831.4,5.46030279]
[1746600188935,6.25245735,1831.7,1831.6,0.18342367]
[1746600189136,6.25245735,1831.7,1831.4,5.46030279]
[1746600189323,6.25245735,1831.7,1831.5,0.18390147]
[1746600190336,6.25245735,1831.7,1831.3,5.46039517]
[1746600190516,6.25245735,1831.7,1831.4,5.64466463]
[1746600191266,5.45886714,1831.9,1831.4,0.23898045]
[1746600191537,6.27336714,1831.9,1831.6,5.4596498]
[1746600191837,6.27336714,1831.9,1831.7,0.18359339]
[1746600192142,3.0,1831.9,1831.6,10.91915704]
[1746600192302,5.45866925,1832.0,1831.8,0.18295382]
[1746600192506,3.0,1832.0,1831.8,0.18295382]
[1746600193342,8.45853941,1832.0,1831.8,0.18295382]
[1746600193919,5.45881325,1831.9,1831.8,0.18295382]
[1746600194634,5.45881325,1831.9,1831.5,8.56801908]
[1746600194828,5.45881325,1831.9,1831.8,0.18242772]
[1746600195030,5.45881325,1831.9,1831.5,10.51443362]
[1746600195209,5.45881325,1831.9,1831.8,0.18242772]
[1746600195411,5.45881325,1831.9,1831.5,10.51443362]
[1746600195640,5.45881325,1831.9,1831.8,0.18242772]
[1746600195819,5.45881325,1831.9,1831.5,10.51443362]
[1746600196143,5.45881325,1831.9,1831.6,1.05144336]
[1746600196449,5.45881325,1831.9,1831.6,1.23482651]
[1746600200053,0.8163,1831.8,1831.6,0.18338315]
[1746600200245,5.45940929,1831.7,1831.6,0.18338315]
[1746600200554,5.45940929,1831.7,1831.4,11.50025189]
[1746600200755,5.45940929,1831.7,1831.5,0.18386095]
[1746600201355,6.27561839,1831.8,1831.5,0.18386095]
[1746600203511,11.73498755,1831.8,1831.5,0.18386095]
[1746600203716,6.27561839,1831.8,1831.5,0.18386095]
[1746600204342,5.45900681,1831.9,1831.6,0.7513]
[1746600204647,10.91804905,1831.9,1831.7,0.18290534]
[1746600204945,6.23211125,1831.8,1831.4,5.46011399]
[1746600205147,6.23211125,1831.8,1831.5,0.18386088]
[1746600205447,5.45942252,1831.7,1831.5,0.18386088]
[1746600206554,5.45942252,1831.7,1831.6,0.18342355]
[1746600206732,5.45942252,1831.7,1831.3,11.70084056]
[1746600206923,5.45942252,1831.7,1831.4,0.18437919]
[1746600207651,10.91912782,1831.7,1831.4,0.18437919]
[1746600207846,6.21101149,1831.6,1831.4,0.18437919]
[1746600210550,6.21101149,1831.6,1831.2,5.46072157]
[1746600211054,6.21101149,1831.6,1831.3,0.18509992]
[1746600211231,6.21101149,1831.6,1831.3,5.64569569]
[1746600211549,6.21101149,1831.6,1831.3,0.18509992]
[1746600211919,5.46012163,1831.5,1831.1,8.57103851]
[1746600212237,5.4603063,1831.4,1831.2,0.18565882]
[1746600212634,5.46020941,1831.5,1831.1,8.2844182]
[1746600212840,5.46020941,1831.5,1831.3,0.18607133]
[1746600213035,10.92044581,1831.5,1831.2,0.18654928]
[1746600213223,5.46020941,1831.5,1831.4,0.18559343]
[1746600213424,5.46020941,1831.5,1831.3,0.18607133]
[1746600213645,5.46020941,1831.5,1831.4,0.18559343]
[1746600213946,5.46020941,1831.5,1831.1,6.27717512]
[1746600214149,5.46020941,1831.5,1831.2,0.18654928]
[1746600214325,5.46020941,1831.5,1831.1,8.9641601]
[1746600214523,5.46048745,1831.4,1831.2,0.18654928]
[1746600214745,5.46048745,1831.4,1831.1,0.8162]
[1746600214953,5.46048745,1831.4,1831.2,0.18695406]
[1746600215137,5.46048745,1831.4,1831.1,0.8162]
[1746600215340,5.46048745,1831.4,1831.2,0.18703502]
[1746600215645,5.46048745,1831.4,1831.1,0.8162]
[1746600215845,5.46048745,1831.4,1831.3,0.18655707]
[1746600216042,6.21122615,1831.6,1831.2,5.70244632]
[1746600216253,5.45989762,1831.6,1831.3,0.18655707]
[1746600217828,5.46010903,1831.5,1831.3,0.18655707]
[1746600218159,5.46010903,1831.5,1831.4,0.18607918]
[1746600218362,6.27247579,1831.6,1831.2,5.46085246]
[1746600218529,6.27247579,1831.6,1831.3,0.18655707]
[1746600219867,11.73245144,1831.6,1831.3,0.18655707]
[1746600220031,6.27247579,1831.6,1831.3,0.18655707]
[1746600220655,10.89499266,1831.9,1831.5,5.45987483]
[1746600220840,6.28094618,1832.0,1831.7,5.45934335]
[1746600221052,11.73969667,1832.0,1831.6,6.39642891]
[1746600221257,11.73971828,1832.0,1831.8,0.18372284]
[1746600221451,6.63284549,1831.9,1831.7,0.18420053]
[1746600221648,5.45887366,1831.9,1831.6,6.21130537]
[1746600221939,6.28103287,1832.0,1831.6,6.21130537]
[1746600222838,5.45882063,1831.9,1831.6,0.7518]
[1746600223039,10.91789688,1831.9,1831.6,0.7518]
[1746600223236,5.45882063,1831.9,1831.6,0.7518]
[1746600223668,5.45958552,1831.7,1831.3,11.50041879]
[1746600223872,5.45958552,1831.7,1831.3,5.46041879]
[1746600224168,5.45958552,1831.7,1831.3,5.46039425]
[1746600224342,6.24147269,1831.6,1831.2,9.87884316]
[1746600224540,0.7815,1831.6,1831.3,5.4605938]
[1746600225076,6.24121125,1831.6,1831.3,5.4605938]
[1746600225642,0.7815,1831.6,1831.3,5.4605938]
[1746600226683,5.45952565,1831.7,1831.3,5.4605938]
[1746600227174,5.45952565,1831.7,1831.3,10.92099371]
[1746600227340,5.45952565,1831.7,1831.3,12.53231785]
[1746600227640,5.45952565,1831.7,1831.3,7.07172405]
[1746600228088,5.45952565,1831.7,1831.3,12.53215026]
[1746600228245,5.45952565,1831.7,1831.3,7.07172405]
[1746600231187,5.45952565,1831.7,1831.4,0.18437919]
[1746600231793,5.45952565,1831.7,1831.4,5.64467595]
[1746600233894,5.45952565,1831.7,1831.4,0.18437919]
[1746600234267,6.2874099,1831.8,1831.4,5.64458921]
[1746600235397,7.57944813,1831.8,1831.4,5.64458921]
[1746600236314,13.03879893,1831.8,1831.4,5.64458921]
[1746600236452,5.45941587,1831.7,1831.4,5.64458921]
[1746600237701,5.45971435,1831.6,1831.4,0.18437919]
[1746600238005,6.24010546,1831.5,1831.4,0.18437919]
[1746600238186,7.41008744,1831.5,1831.4,0.18437919]
[1746600238498,7.41008744,1831.5,1831.1,11.50107126]
[1746600238665,6.24010546,1831.5,1831.4,0.1857553]
[1746600238852,11.7003752,1831.5,1831.1,11.50107126]
[1746600239054,6.24010546,1831.5,1831.4,0.1857553]
[1746600239583,6.24010546,1831.5,1831.1,11.50107126]
[1746600239785,6.24010546,1831.5,1831.2,0.18727787]
[1746600239946,6.24010546,1831.5,1831.1,11.50107126]
[1746600240289,6.24010546,1831.5,1831.2,0.18727787]
[1746600240476,11.70036006,1831.5,1831.2,0.18727787]
[1746600240677,5.46030457,1831.4,1831.1,5.46107126]
[1746600240886,5.46030457,1831.4,1831.3,0.18679992]
[1746600241413,5.46030457,1831.4,1831.1,5.46119052]
[1746600241621,5.46030457,1831.4,1831.3,0.18679992]
[1746600241778,5.46030457,1831.4,1831.2,0.18727787]
[1746600241979,5.46030457,1831.4,1831.1,5.46119052]
[1746600242219,5.46030457,1831.4,1831.2,0.18727787]
[1746600242520,5.46030457,1831.4,1831.1,5.46119052]
[1746600242701,6.24030014,1831.5,1831.2,0.18727787]
[1746600242906,6.24030014,1831.5,1831.1,5.46119052]
[1746600243118,6.24030014,1831.5,1831.2,0.18727787]
[1746600243324,6.24030014,1831.5,1831.1,5.46119052]
[1746600243515,6.24030014,1831.5,1831.2,0.18727787]
[1746600243709,6.24030014,1831.5,1831.1,5.46119052]
[1746600244021,6.24030014,1831.5,1831.2,0.18727787]
[1746600244325,6.24030014,1831.5,1831.1,6.63557883]
[1746600244509,6.24030014,1831.5,1831.2,0.18727787]
[1746600244710,6.24030014,1831.5,1831.1,6.63557883]
[1746600244912,11.70054656,1831.5,1831.2,0.18727787]
[1746600245134,5.46031794,1831.4,1831.1,5.46119052]
[1746600245324,6.24030014,1831.5,1831.1,5.46119052]
[1746600245524,6.24013566,1831.5,1831.2,5.64815383]
[1746600245890,6.21917612,1831.7,1831.2,6.44947476]
[1746600246095,6.21917612,1831.7,1831.3,5.46047581]
[1746600246286,6.21917612,1831.7,1831.4,0.18632202]
[1746600246591,11.67879434,1831.7,1831.4,0.18632202]
[1746600246815,5.45981897,1831.6,1831.4,0.18632202]
[1746600247128,5.45981897,1831.6,1831.2,6.26219573]
[1746600247284,5.45981897,1831.6,1831.2,7.5519581]
[1746600247484,5.45981897,1831.6,1831.3,0.18679992]
[1746600248224,10.91976304,1831.6,1831.3,0.18679992]
[1746600248429,5.46030359,1831.4,1831.3,0.18679992]
[1746600248733,6.62961512,1831.4,1831.3,0.18679992]
[1746600248941,6.62961512,1831.4,1831.3,0.18663799]
[1746600249146,6.62961512,1831.4,1831.0,6.23210582]
[1746600249348,5.46030359,1831.4,1831.1,0.18759394]
[1746600249566,5.46089995,1831.2,1831.1,0.18759394]
[1746600249845,5.46121592,1831.1,1830.8,4.40918234]
[1746600251963,5.46121592,1831.1,1830.8,0.7539]
[1746600252259,5.46121592,1831.1,1830.7,9.11745478]
[1746600252461,6.22689307,1830.8,1830.7,3.65528234]
[1746600252687,11.52075646,1830.8,1830.7,3.65528234]
[1746600252967,12.07075646,1830.8,1830.7,3.65528234]
[1746600253126,12.07075646,1830.8,1830.2,4.75186704]
[1746600253127,6.2283852,1830.3,1830.2,4.75186704]
[1746600253324,10.39756327,1830.3,1830.2,4.75186704]
[1746600255585,3.7648,1830.3,1830.2,4.75186704]
[1746600255772,17.14187764,1830.5,1830.2,22.75186704]
[1746600255975,0.8097,1830.5,1830.2,28.21568414]
[1746600256294,11.71541705,1830.8,1830.3,5.46351618]
[1746600256452,5.46239716,1830.7,1830.3,5.4635852]
[1746600256975,14.2766857,1830.8,1830.3,10.92694048]
[1746600257282,14.2766857,1830.8,1830.4,5.46325594]
[1746600257474,19.73902766,1830.8,1830.4,5.46325594]
[1746600257851,8.81443486,1830.8,1830.4,5.46315133]
[1746600258043,8.81443486,1830.8,1830.5,5.46284558]
[1746600258246,14.27653657,1830.8,1830.4,6.2929843]
[1746600258542,14.27653657,1830.8,1830.4,11.75607581]
[1746600258763,8.81443486,1830.8,1830.5,5.46295061]
[1746600259287,8.81443486,1830.8,1830.4,6.29306283]
[1746600259495,14.27658684,1830.8,1830.4,6.29306283]
[1746600261197,14.27658684,1830.8,1830.5,0.17973448]
[1746600262159,8.81443486,1830.8,1830.5,5.6426298]
[1746600262462,6.2532,1830.8,1830.5,5.64257565]
[1746600267014,9.13725321,1830.6,1830.5,0.17973448]
[1746600267306,9.13725321,1830.6,1829.8,5.46484022]
[1746600267307,5.46407179,1830.2,1829.8,5.46484022]
[1746600267471,3.0,1830.2,1829.8,6.01140319]
[1746600267866,8.46388423,1830.2,1829.9,0.15645032]
[1746600268266,3.0,1830.2,1829.9,0.15645032]
[1746600268466,10.89943236,1830.4,1830.0,5.4643494]
[1746600268877,10.89943236,1830.4,1830.1,0.15682499]
[1746600269693,16.362973,1830.4,1830.1,0.15682499]
[1746600269993,8.46362887,1830.3,1830.1,0.15682499]
[1746600270293,3.0,1830.3,1830.1,0.15682499]
[1746600270513,5.46388372,1830.2,1830.1,0.15682499]
[1746600270801,5.46388372,1830.2,1829.9,6.26507564]
[1746600271103,5.46388372,1830.2,1830.0,0.15730357]
[1746600271396,8.46381889,1830.3,1830.0,0.15730357]
[1746600273399,13.92768394,1830.3,1830.0,0.15730357]
[1746600273588,8.46381889,1830.3,1830.0,0.15730357]
[1746600274176,3.0,1830.2,1830.0,0.15730357]
[1746600277621,8.46388837,1830.2,1830.0,0.15730357]
[1746600282135,3.0,1830.2,1830.0,0.15730357]
[1746600282285,3.0,1830.4,1830.1,5.46408822]
[1746600282485,8.46340747,1830.4,1830.0,7.91545316]
[1746600282693,8.46340747,1830.4,1830.2,0.1582032]
[1746600282910,8.46340747,1830.4,1830.1,0.15868172]
[1746600283115,8.46340747,1830.4,1830.3,0.15772473]
[1746600283317,5.4635852,1830.3,1830.2,0.1582032]
[1746600283518,3.0,1830.2,1830.0,5.4642862]
[1746600283725,5.46340747,1830.4,1830.0,5.4642862]
[1746600285129,3.0,1830.2,1830.0,5.4642862]
[1746600285431,3.0,1830.2,1829.9,6.26491083]
[1746600285631,3.0,1830.2,1829.9,0.8003]
[1746600287038,8.46399173,1830.2,1829.9,6.26502502]
[1746600287331,8.46399173,1830.2,1829.9,8.87204958]
[1746600287903,3.0,1830.2,1829.9,8.87204958]
[1746600288218,8.46390845,1830.2,1829.9,8.87204958]
[1746600288797,8.46390845,1830.2,1829.9,8.86394119]
[1746600289928,3.0,1830.2,1829.9,14.32849772]
[1746600290133,3.0,1830.2,1829.9,8.8637727]
[1746600291236,3.0,1830.2,1830.0,0.1591603]
[1746600292837,8.46394933,1830.2,1830.0,0.1591603]
[1746600293143,3.0,1830.2,1830.0,0.1591603]
[1746600293516,8.46391673,1830.2,1830.0,0.1591603]
[1746600294540,3.0,1830.2,1830.0,0.1591603]
[1746600295439,8.46388637,1830.2,1830.0,0.1591603]
[1746600298938,8.46418228,1830.1,1830.0,0.1591603]
[1746600299244,5.46451196,1830.0,1829.8,6.04]
[1746600299412,5.46451196,1830.0,1829.9,0.15927555]
[1746600299609,5.46451196,1830.0,1829.7,11.72530981]
[1746600299812,5.46451196,1830.0,1829.8,0.15975423]
[1746600300343,8.46437151,1830.1,1829.8,0.15975423]
[1746600300549,3.0,1830.0,1829.8,0.15975423]
[1746600300856,8.46477949,1829.9,1829.8,0.15975423]
[1746600301214,5.46542191,1829.7,1829.4,0.7769]
[1746600301450,5.46542191,1829.7,1829.5,0.16163467]
[1746600301625,5.4652793,1829.8,1829.5,0.16163467]
[1746600301826,6.85828518,1829.8,1829.5,0.16163467]
[1746600302225,12.32360798,1829.8,1829.5,0.16163467]
[1746600302740,5.46540227,1829.7,1829.5,0.16163467]
[1746600303116,5.46567555,1829.6,1829.5,0.16163467]
[1746600303537,5.46567555,1829.6,1829.2,6.26765187]
[1746600303725,5.46567555,1829.6,1829.5,0.16163467]
[1746600303929,6.63797333,1829.6,1829.2,6.26765187]
[1746600304468,6.63797333,1829.6,1829.3,0.1658632]
[1746600304656,5.46616644,1829.5,1829.3,0.1658632]
[1746600305162,5.46616882,1829.5,1829.1,5.46707983]
[1746600305365,5.46616882,1829.5,1829.4,0.16538425]
[1746600305566,6.67660024,1829.5,1829.1,5.46707983]
[1746600305727,6.67660024,1829.5,1829.4,0.16538425]
[1746600305932,6.67660024,1829.5,1829.1,5.46707983]
[1746600306562,6.67660024,1829.5,1829.2,0.16634219]
[1746600306866,6.67660024,1829.5,1829.1,5.46707983]
[1746600307066,6.67660024,1829.5,1829.3,0.1658632]
[1746600307067,6.92832447,1829.4,1829.3,0.1658632]
[1746600307269,6.92832447,1829.4,1829.2,0.16634219]
[1746600307433,6.92832447,1829.4,1829.3,0.1658632]
[1746600307629,6.92832447,1829.4,1829.0,12.45557516]
[1746600307859,6.92832447,1829.4,1829.1,0.16682124]
[1746600308149,0.69283245,1829.3,1829.1,0.16682124]
[1746600309669,6.15940876,1829.3,1829.1,0.16682124]
[1746600310280,0.69283245,1829.3,1829.1,0.16682124]
[1746600310968,6.15948076,1829.3,1829.1,0.16682124]
[1746600312280,0.69283245,1829.3,1829.1,0.16682124]
[1746600312980,6.15951141,1829.3,1829.1,0.16682124]
[1746600313171,0.61595114,1829.2,1829.1,0.16682124]
[1746600318782,6.2604924,1829.4,1829.1,0.16682124]